[Event "Czech Youth U16 Girls 2024"]
[Site "Kouty nad Desnou"]
[Date "2024.03.13"]
[Round "6.3"]
[White "Kaplanova, Dominika"]
[Black "Lackova, Ludmila"]
[Result "1/2-1/2"]
[ECO "A20"]
[WhiteElo "1837"]
[BlackElo "1652"]
[Annotator "NA"]
[PlyCount "66"]
[EventDate "2024.03.10"]
[EventType "swiss"]
[EventCountry "CZE"]
[SourceTitle "playchess.com"]
[Source "ChessBase"]
[SourceQuality "1"]
[TimeControl "40/5400+30:1800+30"]

1. c4 {[%emt 0:00:21]} e5 {[%emt 0:00:08]} 2. g3 {[%emt 0:00:24]} Bc5 {[%emt 0:03:16]} 3. Bg2 {[%emt 0:01:13]} Ne7 {[%emt 0:00:34]} 4. Nc3 {[%emt 0:01:09]} d6 {[%emt 0:01:33]} 5. e3 {[%emt 0:00:54]} Nbc6 {[%emt 0:01:37]} 6. Nge2 {[%emt 0:01:01] A20: English Opening: 1...e5.} Rb8 {[%emt 0:02:31]} 7. O-O {[%emt 0:04:47]} O-O {[%emt 0:00:15]} 8. d4 {[%emt 0:01:32]} exd4 {[%emt 0:06:58]} 9. exd4 {[%emt 0:00:56]} Bb6 {[%emt 0:01:07]} 10. Na4 {[%emt 0:13:05]} Ba5 {[%emt 0:12:08]} 11. a3 {[%emt 0:12:24]} a6 {[%emt 0:12:09]} 12. b4 {[%emt 0:03:23]} Bb6 {[%emt 0:00:48]} 13. Nxb6 {[%emt 0:02:52]} cxb6 {[%emt 0:00:02]} 14. Bf4 {[%emt 0:08:03]} Ng6 {[%emt 0:00:23]} 15. Be3 {[%emt 0:00:42]} Nce7 {[%emt 0:01:39]} 16. Nf4 {[%emt 0:06:15]} Bd7 {[%emt 0:02:09]} 17. a4 {[%emt 0:03:42]} Nf5 {[%emt 0:03:08]} 18. Bc1 {[%emt 0:02:02]} Qc7 {[%emt 0:01:03]} (18... Nxf4 $14 19. Bxf4 Qf6) 19. Qd3 {[%emt 0:08:17]} Rfc8 {[%emt 0:01:42]} 20. Nd5 {[%emt 0:01:35]} Qxc4 {[%emt 0:01:19]} 21. Qxc4 {[%emt 0:00:10]} Rxc4 {[%emt 0:00:06]} 22. Nxb6 {[%emt 0:00:09]} Rc7 {[%emt 0:00:42]} 23. Bh3 {[%emt 0:05:07]} Nge7 {[%emt 0:18:37]} 24. Bf4 {[%emt 0:02:41]} Rd8 $16 {[%emt 0:08:15]} 25. d5 {[%emt 0:10:49]} Be8 {[%emt 0:10:49]} 26. Rac1 {[%emt 0:03:38]} Rxc1 {[%emt 0:00:22]} 27. Rxc1 {[%emt 0:00:06]} Nd4 {[%emt 0:01:20]} 28. Kf1 {[%emt 0:01:54]} Ng6 {[%emt 0:01:04]} 29. Rc8 {[%emt 0:01:35]} Rxc8 {[%emt 0:00:26]} 30. Bxc8 {[%emt 0:00:22]} Nxf4 {[%emt 0:00:07]} 31. gxf4 {[%emt 0:00:03]} Nc2 {[%emt 0:00:28]} 32. Bxb7 {[%emt 0:00:46]} Nxb4 {[%emt 0:00:06]} 33. Kg2 {[%emt 0:02:35]} Kf8 {[%emt 0:00:45]} 1/2-1/2

[Event "Czech Youth U16 Girls 2024"]
[Site "Kouty nad Desnou"]
[Date "2024.03.13"]
[Round "6.4"]
[White "Mikesova, Lenka"]
[Black "Brezikova, Beata"]
[Result "1/2-1/2"]
[ECO "C44"]
[WhiteElo "1665"]
[BlackElo "1804"]
[Annotator "NA RC"]
[PlyCount "95"]
[EventDate "2024.03.10"]
[EventType "swiss"]
[EventCountry "CZE"]
[SourceTitle "playchess.com"]
[Source "ChessBase"]
[SourceQuality "1"]
[TimeControl "40/5400+30:1800+30"]

1. e4 {[%emt 0:00:02]} e5 {[%emt 0:00:03]} 2. Nf3 {[%emt 0:00:07]} Nc6 {[%emt 0:00:04]} 3. d4 {[%emt 0:00:14]} exd4 {[%emt 0:00:05]} 4. Nxd4 {[%emt 0:00:20]} Qf6 {[%emt 0:00:07]} 5. Nf3 {[%emt 0:00:51]} Bc5 {[%emt 0:02:24]} 6. Nc3 {[%emt 0:02:14] C45: Scotch Game.} Nge7 {[%emt 0:03:20]} 7. Bg5 {[%emt 0:11:09]} Qe6 {[%emt 0:07:22]} 8. Be2 {[%emt 0:05:34]} O-O {[%emt 0:10:06]} 9. O-O {[%emt 0:06:32]} Ne5 {[%emt 0:07:14]} 10. Nd4 {[%emt 0:11:35]} Bxd4 {[%emt 0:06:52]} 11. Qxd4 {[%emt 0:00:12]} N7c6 {[%emt 0:01:56]} 12. Qe3 {[%emt 0:01:15]} Nc4 {[%emt 0:08:32]} 13. Bxc4 {[%emt 0:08:52]} Qxc4 {[%emt 0:00:21]} 14. b3 {[%emt 0:08:04]} Qd4 {[%emt 0:06:46]} 15. Nd5 {[%emt 0:03:47]} f6 {[%emt 0:10:07]} 16. c3 {[%emt 0:06:06]} Qxe3 {[%emt 0:07:21]} 17. Bxe3 {[%emt 0:00:18]} d6 {[%emt 0:02:11]} 18. Nxc7 {[%emt 0:00:33]} Rb8 {[%emt 0:00:26]} 19. Nb5 {[%emt 0:01:18]} f5 {[%emt 0:01:13]} 20. Nxd6 {[%emt 0:10:56]} fxe4 {[%emt 0:00:59]} 21. Nxc8 {[%emt 0:00:35]} Rbxc8 {[%emt 0:00:06]} 22. Rfd1 {[%emt 0:01:12]} a6 {[%emt 0:01:00]} 23. Rd7 {[%emt 0:01:37]} Rf7 {[%emt 0:00:36]} 24. Rad1 {[%emt 0:00:52]} Ne5 {[%emt 0:00:44]} 25. Rd8+ {[%emt 0:03:20]} Rf8 {[%emt 0:00:20]} 26. Rxf8+ {[%emt 0:00:38]} Kxf8 {[%emt 0:00:18]} 27. Rd5 {[%emt 0:01:12]} Nd3 {[%emt 0:01:11]} 28. Bd4 {[%emt 0:00:52]} Nc1 {[%emt 0:01:01]} 29. Rd7 {[%emt 0:03:49]} Ne2+ {[%emt 0:02:00]} 30. Kf1 {[%emt 0:00:08]} Nxd4 {[%emt 0:00:39]} 31. cxd4 {[%emt 0:02:10]} Rc1+ {[%emt 0:01:15]} 32. Ke2 {[%emt 0:00:09]} Rc2+ {[%emt 0:00:34]} 33. Ke3 {[%emt 0:00:18]} b5 {[%emt 0:01:00]} 34. a4 {[%emt 0:03:24]} bxa4 {[%emt 0:02:40]} 35. bxa4 {[%emt 0:00:17]} Ra2 {[%emt 0:00:35]} 36. Ra7 {[%emt 0:01:58]} Rxa4 {[%emt 0:01:11]} 37. Kxe4 {[%emt 0:00:07]} Ra2 {[%emt 0:01:59]} 38. Kf3 {[%emt 0:02:53]} Ra3+ {[%emt 0:00:57]} 39. Kg4 {[%emt 0:01:31]} Ra2 {[%emt 0:00:45]} 40. Kg3 {[%emt 0:01:06]} Rd2 {[%emt 0:01:42]} 41. Rxa6 {[%emt 0:30:57]} Rxd4 {[%emt 0:30:26]} 42. Ra7 {[%emt 0:00:41]} h5 {[%emt 0:04:13]} 43. f3 {[%emt 0:00:00]} g6 $14 {[%emt 0:00:00]} 44. Ra5 {[%emt 0:00:00]} Kf7 {[%emt 0:00:00]} 45. Re5 {[%emt 0:00:00]} Kf6 {[%emt 0:00:00]} 46. Re4 {[%emt 0:00:00]} Rd5 {[%emt 0:00:00]} 47. h4 {[%emt 0:00:00]} Rd2 {[%emt 0:00:00]} 48. Kh3 {[%emt 0:00:00]} 1/2-1/2

[Event "Czech Youth U16 Girls 2024"]
[Site "Kouty nad Desnou"]
[Date "2024.03.13"]
[Round "6.5"]
[White "Kavanova, Anezka"]
[Black "Dlaskova, Eliska"]
[Result "1-0"]
[ECO "B08"]
[WhiteElo "1661"]
[BlackElo "1526"]
[Annotator "NA RC"]
[PlyCount "79"]
[EventDate "2024.03.10"]
[EventType "swiss"]
[EventCountry "CZE"]
[SourceTitle "playchess.com"]
[Source "ChessBase"]
[SourceQuality "1"]
[TimeControl "40/5400+30:1800+30"]

1. e4 {[%emt 0:00:03]} d6 {[%emt 0:00:11]} 2. d4 {[%emt 0:00:05]} Nf6 {[%emt 0:00:09]} 3. Nc3 {[%emt 0:00:09]} g6 {[%emt 0:00:25]} 4. Nf3 {[%emt 0:00:50]} Bg7 {[%emt 0:01:11]} 5. Be2 {[%emt 0:02:33]} O-O {[%emt 0:01:57]} 6. Bf4 {[%emt 0:06:45]} Nh5 {[%emt 0:08:44]} 7. Be3 {[%emt 0:00:21]} e5 {[%emt 0:08:08]} 8. Qd2 exd4 {[%emt 0:11:03]} 9. Nxd4 {[%emt 0:06:03]} Nf6 {[%emt 0:08:55]} 10. O-O-O {[%emt 0:01:38]} Nc6 {[%emt 0:16:37]} 11. h4 {[%emt 0:05:11]} Nxd4 {[%emt 0:06:53]} 12. Bxd4 {[%emt 0:00:16]} Qe7 {[%emt 0:01:05]} 13. h5 {[%emt 0:01:38]} c5 {[%emt 0:05:20]} 14. Be3 {[%emt 0:01:27]} Nxe4 {[%emt 0:03:58]} 15. Nxe4 {[%emt 0:00:11]} Qxe4 {[%emt 0:01:17]} 16. hxg6 {[%emt 0:01:12]} fxg6 {[%emt 0:03:44]} 17. Qxd6 {[%emt 0:09:30]} Bf5 {[%emt 0:04:45]} 18. Bd3 {[%emt 0:01:28]} Qb4 {[%emt 0:03:30]} 19. Qd5+ {[%emt 0:00:56]} Rf7 {[%emt 0:01:58]} 20. c3 {[%emt 0:02:36]} Bxc3 {[%emt 0:01:07]} 21. bxc3 {[%emt 0:00:06]} Qxc3+ {[%emt 0:00:52]} 22. Kb1 {[%emt 0:00:05]} Qb4+ {[%emt 0:02:00]} 23. Qb3 {[%emt 0:00:22]} Rd8 {[%emt 0:02:51]} 24. Bxf5 {[%emt 0:02:02]} Qxb3+ {[%emt 0:00:34]} 25. axb3 {[%emt 0:00:07]} Rxd1+ {[%emt 0:00:31]} 26. Rxd1 {[%emt 0:00:07]} Rxf5 {[%emt 0:00:15]} 27. Rd7 {[%emt 0:00:05]} Rf7 {[%emt 0:02:02]} 28. Rxf7 {[%emt 0:00:06]} Kxf7 {[%emt 0:00:05]} 29. Bxc5 {[%emt 0:00:05]} a6 {[%emt 0:00:25]} 30. Kc2 {[%emt 0:00:20]} Ke6 {[%emt 0:00:44]} 31. Kc3 {[%emt 0:00:12]} Kd5 {[%emt 0:01:36]} 32. Be3 {[%emt 0:00:06]} b5 {[%emt 0:01:10]} 33. Kb4 {[%emt 0:00:10]} Kc6 {[%emt 0:00:21]} 34. Ka5 {[%emt 0:00:08]} Kb7 {[%emt 0:00:20]} 35. b4 {[%emt 0:00:05]} h5 {[%emt 0:01:46]} 36. g3 {[%emt 0:00:12]} Kb8 {[%emt 0:01:17]} 37. Kxa6 {[%emt 0:00:10]} Ka8 {[%emt 0:00:08]} 38. Kxb5 {[%emt 0:00:07]} Kb7 {[%emt 0:00:10]} 39. Kc5 {[%emt 0:00:08]} Kc7 {[%emt 0:00:27]} 40. Kd5 {[%emt 0:00:05]} 1-0

[Event "Czech Youth U16 Girls 2024"]
[Site "Kouty nad Desnou"]
[Date "2024.03.13"]
[Round "6.6"]
[White "Holatova, Irena"]
[Black "Sikorova, Jana"]
[Result "0-1"]
[ECO "B22"]
[WhiteElo "1608"]
[BlackElo "1788"]
[Annotator "NA"]
[PlyCount "84"]
[EventDate "2024.03.10"]
[EventType "swiss"]
[EventCountry "CZE"]
[SourceTitle "playchess.com"]
[Source "ChessBase"]
[SourceQuality "1"]
[TimeControl "40/5400+30:1800+30"]

1. e4 {[%emt 0:00:01]} c5 {[%emt 0:00:07]} 2. c3 {[%emt 0:00:05]} d5 {[%emt 0:00:14]} 3. exd5 {[%emt 0:00:07]} Qxd5 {[%emt 0:00:07]} 4. d4 {[%emt 0:00:05]} e6 {[%emt 0:00:14]} 5. Nf3 {[%emt 0:00:17]} Nf6 {[%emt 0:00:11]} 6. Be3 {[%emt 0:00:31]} cxd4 {[%emt 0:00:46]} 7. cxd4 {[%emt 0:00:12]} Nc6 {[%emt 0:00:42]} 8. a3 {[%emt 0:00:14]} Be7 {[%emt 0:00:53]} 9. Nc3 {[%emt 0:00:59]} Qd6 {[%emt 0:01:16]} 10. Bd3 {[%emt 0:00:50]} O-O {[%emt 0:01:22]} 11. O-O {[%emt 0:00:35]} b6 {[%emt 0:01:58]} 12. Qe2 {[%emt 0:01:14]} Bb7 {[%emt 0:03:41]} 13. Rad1 {[%emt 0:01:02]} Rac8 {[%emt 0:03:23]} 14. Rfe1 {[%emt 0:01:47]} Rfd8 {[%emt 0:02:53]} 15. Bb1 {[%emt 0:02:39]} g6 {[%emt 0:04:10]} 16. Qd3 {[%emt 0:03:13]} Bf8 {[%emt 0:03:37]} 17. Ne4 {[%emt 0:07:14]} Nxe4 {[%emt 0:02:11]} 18. Qxe4 {[%emt 0:00:14]} Bg7 {[%emt 0:02:42]} 19. Qh4 {[%emt 0:05:24]} Ne7 {[%emt 0:06:38]} 20. Bf4 {[%emt 0:05:59]} Qd7 {[%emt 0:05:19]} 21. Ne5 {[%emt 0:03:44]} Qe8 {[%emt 0:03:44]} 22. Ng4 {[%emt 0:07:01]} Nd5 {[%emt 0:09:38]} 23. Bh6 {[%emt 0:06:40]} Bxh6 {[%emt 0:02:06]} 24. Qxh6 {[%emt 0:04:33]} Qf8 {[%emt 0:01:34]} 25. Qh4 {[%emt 0:03:30]} Qe7 {[%emt 0:01:29]} 26. Qh6 {[%emt 0:01:37]} Ba6 {[%emt 0:02:15]} 27. f4 {[%emt 0:08:37]} Qf8 {[%emt 0:03:25]} 28. Qh4 {[%emt 0:01:55]} Qg7 {[%emt 0:01:46]} 29. Re5 {[%emt 0:02:37]} Kf8 {[%emt 0:04:04]} 30. Nf2 {[%emt 0:06:28]} Rd7 {[%emt 0:05:30]} 31. Ne4 {[%emt 0:03:35]} Bb7 {[%emt 0:06:22]} 32. Qg3 {[%emt 0:03:24]} Nf6 {[%emt 0:01:35]} 33. Nc3 {[%emt 0:01:36]} Rcd8 {[%emt 0:01:30]} 34. Qf2 {[%emt 0:00:50]} Ng4 {[%emt 0:02:54]} 35. Qh4 {[%emt 0:01:02]} Nxe5 {[%emt 0:00:39]} 36. fxe5 {[%emt 0:00:28]} Kg8 {[%emt 0:01:33]} 37. Nb5 {[%emt 0:01:26]} Qf8 {[%emt 0:03:54]} 38. Rd3 {[%emt 0:01:56]} Qe7 {[%emt 0:02:42]} 39. Qf4 {[%emt 0:01:29]} Ba6 {[%emt 0:01:13]} 40. a4 {[%emt 0:01:41]} Bxb5 {[%emt 0:00:35]} 41. axb5 {[%emt 0:30:08]} Qb4 {[%emt 0:30:33]} 42. Qf6 {[%emt 0:06:53]} Qe1+ {[%emt 0:00:30]} 0-1

[Event "Czech Youth U16 Girls 2024"]
[Site "Kouty nad Desnou"]
[Date "2024.03.13"]
[Round "6.7"]
[White "Dorazilova, Kristyna"]
[Black "Dudkova, Josefina"]
[Result "1-0"]
[ECO "B01"]
[WhiteElo "1722"]
[BlackElo "1796"]
[Annotator "NA RC"]
[PlyCount "91"]
[EventDate "2024.03.10"]
[EventType "swiss"]
[EventCountry "CZE"]
[SourceTitle "playchess.com"]
[Source "ChessBase"]
[SourceQuality "1"]
[TimeControl "40/5400+30:1800+30"]

1. e4 {[%emt 0:00:03]} d5 {[%emt 0:00:10]} 2. exd5 {[%emt 0:00:07]} Qxd5 {[%emt 0:00:09]} 3. Nc3 {[%emt 0:00:08]} Qd6 {[%emt 0:00:07]} 4. d4 {[%emt 0:00:17]} Nf6 {[%emt 0:00:11]} 5. Nf3 {[%emt 0:00:28]} Bg4 {[%emt 0:00:56]} 6. Be2 {[%emt 0:00:15]} e6 {[%emt 0:00:36]} 7. h3 {[%emt 0:00:21]} Bh5 {[%emt 0:00:38]} 8. Be3 {[%emt 0:03:34]} c6 {[%emt 0:00:32]} 9. Qd2 {[%emt 0:02:42]} Be7 {[%emt 0:00:50]} 10. O-O {[%emt 0:03:52]} O-O {[%emt 0:00:40]} 11. Rad1 {[%emt 0:00:25]} Nbd7 {[%emt 0:06:20]} 12. Rfe1 {[%emt 0:05:28]} Nb6 {[%emt 0:02:21]} 13. Ne5 {[%emt 0:07:12]} Bxe2 {[%emt 0:02:14]} 14. Qxe2 {[%emt 0:00:12]} Nbd5 {[%emt 0:03:16]} 15. Nxd5 {[%emt 0:04:26]} cxd5 {[%emt 0:01:35]} 16. c3 {[%emt 0:02:04]} a6 {[%emt 0:11:53]} 17. f4 {[%emt 0:08:12]} Ne4 {[%emt 0:03:47]} 18. Qg4 {[%emt 0:09:00]} f5 {[%emt 0:08:11]} 19. Qf3 {[%emt 0:06:01]} b5 {[%emt 0:04:35]} 20. Rc1 {[%emt 0:08:20]} Bf6 {[%emt 0:08:42]} 21. Rc2 {[%emt 0:06:54]} Bxe5 {[%emt 0:04:41]} 22. dxe5 {[%emt 0:01:57]} Qd7 {[%emt 0:00:29]} 23. Bd4 Rfc8 {[%emt 0:10:42]} 24. g4 {[%emt 0:12:46]} Rc6 {[%emt 0:04:44]} 25. Rg2 {[%emt 0:01:38]} Rf8 {[%emt 0:02:59]} 26. gxf5 {[%emt 0:03:32]} Rxf5 {[%emt 0:00:14]} 27. Kh2 {[%emt 0:01:09]} Kf8 {[%emt 0:03:05]} 28. Qg4 {[%emt 0:02:19]} Qf7 {[%emt 0:01:27]} 29. Reg1 {[%emt 0:01:48]} g6 {[%emt 0:01:42]} 30. Be3 {[%emt 0:01:16]} Nc5 {[%emt 0:02:23]} 31. Qd1 {[%emt 0:04:02]} Na4 {[%emt 0:02:47]} 32. Qb1 {[%emt 0:01:12]} Nb6 {[%emt 0:01:13]} 33. Rg5 {[%emt 0:01:12]} Qd7 {[%emt 0:06:35]} 34. Rxf5+ {[%emt 0:01:09]} exf5 {[%emt 0:00:03]} 35. Qd3 {[%emt 0:01:26]} Nc4 {[%emt 0:01:48]} 36. Bc1 {[%emt 0:00:17]} Rc8 {[%emt 0:02:01]} 37. Rd1 {[%emt 0:00:53]} Rd8 {[%emt 0:00:16]} 38. Qd4 {[%emt 0:00:48]} Qe7 {[%emt 0:01:14]} 39. b3 {[%emt 0:00:59]} Na3 {[%emt 0:01:11]} 40. Qb6 {[%emt 0:00:33]} Nc2 {[%emt 0:02:41]} 41. Qxa6 {[%emt 0:08:45]} b4 {[%emt 0:04:11]} 42. cxb4 {[%emt 0:07:00]} d4 {[%emt 0:08:26]} 43. b5 {[%emt 0:04:52]} d3 {[%emt 0:03:50]} 44. Qf6+ {[%emt 0:02:14]} Qxf6 {[%emt 0:00:13]} 45. exf6 {[%emt 0:00:01]} Nd4 {[%emt 0:01:35]} 46. Rxd3 {[%emt 0:00:58]} 1-0

[Event "Czech Youth U16 Girls 2024"]
[Site "Kouty nad Desnou"]
[Date "2024.03.13"]
[Round "6.8"]
[White "Vacekova, Anita"]
[Black "Archlebova, Stela"]
[Result "1-0"]
[ECO "C64"]
[WhiteElo "1783"]
[BlackElo "1600"]
[Annotator "NA RC"]
[PlyCount "55"]
[EventDate "2024.03.10"]
[EventType "swiss"]
[EventCountry "CZE"]
[SourceTitle "playchess.com"]
[Source "ChessBase"]
[SourceQuality "1"]
[TimeControl "40/5400+30:1800+30"]

1. e4 {[%emt 0:00:01]} e5 {[%emt 0:00:13]} 2. Nf3 {[%emt 0:00:03]} Nc6 {[%emt 0:00:12]} 3. Bb5 {[%emt 0:00:04]} Bc5 {[%emt 0:00:23]} 4. c3 {[%emt 0:00:05]} Nf6 {[%emt 0:00:34]} 5. d4 {[%emt 0:00:09]} exd4 {[%emt 0:00:20]} 6. e5 {[%emt 0:00:05]} Nd5 {[%emt 0:01:29]} 7. O-O {[%emt 0:00:28]} O-O {[%emt 0:00:46]} 8. cxd4 {[%emt 0:00:27]} Bb6 {[%emt 0:00:32]} 9. Nc3 {[%emt 0:00:28]} Nxc3 {[%emt 0:00:28]} 10. bxc3 {[%emt 0:00:05]} d6 {[%emt 0:00:30]} 11. Bg5 {[%emt 0:07:06]} Ne7 {[%emt 0:01:08]} 12. Bd3 {[%emt 0:09:34]} dxe5 {[%emt 0:11:03]} 13. dxe5 {[%emt 0:01:29]} Bg4 {[%emt 0:08:36]} 14. Qc2 {[%emt 0:13:21]} Qd7 {[%emt 0:04:11]} 15. Bxh7+ {[%emt 0:11:22]} Kh8 {[%emt 0:00:19]} 16. Be4 {[%emt 0:15:21]} Rab8 {[%emt 0:12:46]} 17. c4 {[%emt 0:10:59]} Bc5 {[%emt 0:05:15]} 18. Rab1 {[%emt 0:05:07]} b6 {[%emt 0:03:39]} 19. Rfd1 {[%emt 0:06:42]} Qe6 {[%emt 0:00:23]} 20. Re1 {[%emt 0:09:27]} Ng6 {[%emt 0:01:30]} 21. h3 {[%emt 0:04:04]} Bxf3 {[%emt 0:01:52]} 22. Bxf3 {[%emt 0:00:59]} Be7 {[%emt 0:01:57]} 23. Bd5 {[%emt 0:01:01]} Qc8 {[%emt 0:02:18]} 24. Bxf7 {[%emt 0:02:24]} Bxg5 {[%emt 0:04:55]} 25. Qxg6 {[%emt 0:00:23]} Bh6 {[%emt 0:00:57]} 26. e6 {[%emt 0:00:29]} Qb7 {[%emt 0:03:10]} 27. e7 {[%emt 0:00:20]} Qa8 {[%emt 0:01:19]} 28. Bd5 {[%emt 0:00:43]} 1-0

[Event "Czech Youth U16 Girls 2024"]
[Site "Kouty nad Desnou"]
[Date "2024.03.13"]
[Round "6.9"]
[White "Stavova, Marketa"]
[Black "Hetfleischova, Elen"]
[Result "1-0"]
[ECO "A06"]
[WhiteElo "1641"]
[BlackElo "1699"]
[Annotator "NA RC"]
[PlyCount "63"]
[EventDate "2024.03.10"]
[EventType "swiss"]
[EventCountry "CZE"]
[SourceTitle "playchess.com"]
[Source "ChessBase"]
[SourceQuality "1"]
[TimeControl "40/5400+30:1800+30"]

1. Nf3 {[%emt 0:00:09]} d5 {[%emt 0:00:52]} 2. c4 {[%emt 0:01:43]} Nc6 {[%emt 0:05:47]} 3. d4 {[%emt 0:02:08]} Nf6 {[%emt 0:01:25]} 4. Nc3 {[%emt 0:03:23]} Bf5 {[%emt 0:00:34]} 5. Bf4 {[%emt 0:01:31]} e6 {[%emt 0:03:24]} 6. e3 {[%emt 0:03:37]} Bd6 {[%emt 0:01:26]} 7. Ne5 {[%emt 0:06:37]} O-O {[%emt 0:03:38]} 8. Bg3 {[%emt 0:05:01]} Bxe5 {[%emt 0:03:56]} 9. Bxe5 {[%emt 0:03:11]} Nxe5 {[%emt 0:00:41]} 10. dxe5 {[%emt 0:00:06]} Ng4 {[%emt 0:05:29]} 11. cxd5 {[%emt 0:08:01]} Nxe5 {[%emt 0:01:03]} 12. e4 {[%emt 0:01:29]} Bg6 {[%emt 0:02:40]} 13. Be2 {[%emt 0:06:16]} exd5 {[%emt 0:02:19]} 14. exd5 {[%emt 0:01:35]} Qd6 {[%emt 0:03:22]} 15. O-O {[%emt 0:01:33]} a6 {[%emt 0:00:23]} 16. f4 {[%emt 0:02:47]} Qb6+ {[%emt 0:03:35]} 17. Kh1 {[%emt 0:00:13]} Qxb2 {[%emt 0:02:03]} 18. Na4 {[%emt 0:02:33]} Qb4 {[%emt 0:03:38]} 19. a3 {[%emt 0:02:17]} Qe4 {[%emt 0:03:12]} 20. fxe5 {[%emt 0:00:48]} Qxe5 {[%emt 0:00:15]} 21. Bf3 {[%emt 0:02:09]} Qd6 {[%emt 0:01:17]} 22. Qb3 {[%emt 0:01:42]} Rab8 {[%emt 0:07:08]} 23. Nc3 {[%emt 0:02:19]} Rfe8 {[%emt 0:02:03]} 24. Rfe1 {[%emt 0:01:30]} b5 {[%emt 0:04:55]} 25. Rac1 {[%emt 0:04:11]} Rbd8 {[%emt 0:03:10]} 26. Rcd1 {[%emt 0:06:26]} Qc5 {[%emt 0:01:13]} 27. Qb2 {[%emt 0:03:04]} Bf5 {[%emt 0:06:16]} 28. Ne4 {[%emt 0:04:12]} Qe7 {[%emt 0:03:39]} 29. Qc1 {[%emt 0:00:56]} Rc8 {[%emt 0:07:53]} 30. Ng3 {[%emt 0:01:50]} Qd7 {[%emt 0:02:07]} 31. Rxe8+ {[%emt 0:00:25]} Rxe8 {[%emt 0:00:11]} 32. Nxf5 {[%emt 0:00:07]} 1-0

[Event "Czech Youth U16 Girls 2024"]
[Site "Kouty nad Desnou"]
[Date "2024.03.13"]
[Round "6.10"]
[White "Urvalkova, Ema"]
[Black "Zelenkova, Sofie"]
[Result "0-1"]
[ECO "B01"]
[WhiteElo "1496"]
[BlackElo "1636"]
[Annotator "NA"]
[PlyCount "132"]
[EventDate "2024.03.10"]
[EventType "swiss"]
[EventCountry "CZE"]
[SourceTitle "playchess.com"]
[Source "ChessBase"]
[SourceQuality "1"]
[TimeControl "40/5400+30:1800+30"]

1. e4 {[%emt 0:00:02]} d5 {[%emt 0:00:03]} 2. exd5 {[%emt 0:00:09]} Qxd5 {[%emt 0:00:03]} 3. Nc3 {[%emt 0:00:13]} Qa5 {[%emt 0:00:06]} 4. d4 {[%emt 0:00:11]} Nf6 {[%emt 0:00:09]} 5. Bd2 {[%emt 0:00:09]} c6 {[%emt 0:00:03]} 6. Nf3 {[%emt 0:00:40]} Bf5 {[%emt 0:00:17]} 7. Bc4 {[%emt 0:02:44]} Qc7 {[%emt 0:01:04]} 8. Ne5 {[%emt 0:01:07]} e6 {[%emt 0:00:29]} 9. g4 {[%emt 0:00:21]} Bg6 {[%emt 0:00:42]} 10. Qe2 {[%emt 0:17:34]} Nbd7 {[%emt 0:03:44]} 11. h4 {[%emt 0:03:17]} Bb4 {[%emt 0:29:32]} 12. f3 {[%emt 0:05:05]} Nxe5 {[%emt 0:10:21]} 13. dxe5 {[%emt 0:00:50]} Nd7 {[%emt 0:00:37]} 14. f4 {[%emt 0:07:46]} h5 {[%emt 0:02:53]} 15. O-O-O {[%emt 0:01:14]} O-O-O {[%emt 0:02:48]} 16. f5 {[%emt 0:02:33]} exf5 {[%emt 0:01:14]} 17. gxf5 {[%emt 0:01:22]} Bxf5 {[%emt 0:00:43]} 18. Qf2 {[%emt 0:01:35]} Bg4 {[%emt 0:02:58]} 19. Rde1 {[%emt 0:08:21]} Nxe5 {[%emt 0:02:14]} 20. Bf4 {[%emt 0:03:25]} f6 {[%emt 0:03:11]} 21. Bxe5 {[%emt 0:01:07]} fxe5 {[%emt 0:00:13]} 22. Qxa7 {[%emt 0:00:47]} Bxc3 {[%emt 0:03:59]} 23. bxc3 {[%emt 0:00:39]} Rhe8 {[%emt 0:04:12]} 24. Rhg1 {[%emt 0:01:32]} b5 {[%emt 0:08:10]} 25. Qa6+ {[%emt 0:08:43]} Qb7 {[%emt 0:00:24]} 26. Qxb7+ {[%emt 0:00:31]} Kxb7 27. Bf7 {[%emt 0:01:07]} Re7 {[%emt 0:00:26]} 28. Bg6 {[%emt 0:00:18]} Kb6 {[%emt 0:03:58]} 29. Re3 {[%emt 0:01:11]} Re6 {[%emt 0:02:59]} 30. Be4 {[%emt 0:04:52]} g6 {[%emt 0:02:31]} 31. Rge1 {[%emt 0:01:02]} Rde8 {[%emt 0:00:30]} 32. Kb2 {[%emt 0:01:05]} Kc5 {[%emt 0:01:03]} 33. Kb3 {[%emt 0:00:45]} Bf5 {[%emt 0:00:41]} 34. Bf3 {[%emt 0:01:20]} e4 {[%emt 0:00:42]} 35. Bg2 {[%emt 0:00:57]} Re5 {[%emt 0:00:53]} 36. a3 {[%emt 0:01:37]} Be6+ {[%emt 0:01:13]} 37. Kb2 {[%emt 0:00:44]} Bd5 {[%emt 0:00:42]} 38. Bh3 {[%emt 0:01:22]} Rf8 {[%emt 0:00:34]} 39. Rg1 {[%emt 0:02:35]} Rf4 {[%emt 0:01:18]} 40. Rxg6 {[%emt 0:00:17]} Rxh4 {[%emt 0:00:10]} 41. Rh6 {[%emt 0:31:13]} Rf4 {[%emt 0:31:09]} 42. Bg2 {[%emt 0:01:58]} Rg5 {[%emt 0:01:59]} 43. Bh1 {[%emt 0:01:34]} Rh4 {[%emt 0:00:26]} 44. Re1 {[%emt 0:01:05]} Rg3 {[%emt 0:02:28]} 45. c4 {[%emt 0:02:41]} Kxc4 {[%emt 0:00:29]} 46. Rf6 {[%emt 0:03:39]} e3 {[%emt 0:01:42]} 47. Bxd5+ {[%emt 0:00:24]} cxd5 {[%emt 0:01:13]} 48. Rc6+ {[%emt 0:01:59]} Kd4 {[%emt 0:00:24]} 49. Rd1+ {[%emt 0:00:59]} Ke5 {[%emt 0:00:18]} 50. Rc8 {[%emt 0:00:51]} Re4 {[%emt 0:01:56]} 51. Re8+ {[%emt 0:00:36]} Kf4 {[%emt 0:00:10]} 52. Rf1+ {[%emt 0:01:10]} Kg4 {[%emt 0:00:14]} 53. Rg8+ {[%emt 0:01:38]} Kh4 {[%emt 0:00:10]} 54. Rh8 {[%emt 0:00:49]} e2 {[%emt 0:01:22]} 55. Re1 {[%emt 0:01:45]} Rf3 {[%emt 0:00:20]} 56. Rh1+ {[%emt 0:01:08]} Kg3 {[%emt 0:00:56]} 57. Rg8+ {[%emt 0:00:23]} Kf2 {[%emt 0:00:35]} 58. Rh2+ {[%emt 0:00:36]} Ke1 {[%emt 0:00:41]} 59. Rg1+ {[%emt 0:00:54]} Rf1 {[%emt 0:00:16]} 60. Rgg2 {[%emt 0:00:30]} Kd1 {[%emt 0:00:25]} 61. Rxe2 {[%emt 0:02:57]} Rxe2 {[%emt 0:00:09]} 62. Rxh5 {[%emt 0:00:05]} Rxc2+ {[%emt 0:00:07]} 63. Kb3 {[%emt 0:00:42]} Rf3+ {[%emt 0:01:32]} 64. Kb4 {[%emt 0:00:07]} Rb2+ {[%emt 0:00:46]} 65. Kc5 {[%emt 0:00:12]} Rxa3 {[%emt 0:00:48]} 66. Rxd5+ {[%emt 0:00:20]} Kc2 {[%emt 0:00:45]} 0-1